fUST/lending_fUST_20250815
["ID","MTS","AMOUNT","RATE_DAILY","PERIOD"]
[379385585,1755265839811,-692.72989914,0.00018894,2]
[379385586,1755265839819,-692.72989914,0.00018894,2]
[379385587,1755265839828,-571.71741457,0.00018894,2]
[379385588,1755265840188,-121.01248457,0.00018894,2]
[379385589,1755265840197,-692.72989914,0.00018894,2]
[379385590,1755265840206,-692.72989914,0.00018894,2]
[379385591,1755265840216,-692.72989914,0.00018894,2]
[379385592,1755265840225,-692.72989914,0.00018894,2]
[379385593,1755265840233,-748.14829106,0.00018894,2]
[379385594,1755265840242,-748.14829106,0.00018894,2]
[379385595,1755265840251,-748.14829106,0.00018894,2]
[379385596,1755265840260,-513.62304569,0.00018894,2]
[379385597,1755265840271,-234.52524537,0.00018894,2]
[379385598,1755265840281,-491.70711957,0.00018894,2]
[379385599,1755265840292,-256.44117149,0.00018894,2]
[379385600,1755265840301,-5655.05882851,0.00018895,2]
[379385601,1755265840315,-54895.9,0.00018895,2]
[379385853,1755265843206,-289.00347756,0.00018895,2]
[379385882,1755265843420,-77199.19569571,0.00018895,2]
[379385885,1755265843435,-11959.999987,0.00018895,2]
[379386164,1755265846264,-3862.43,0.00018885,3]
[379386166,1755265846274,-2389.47920359,0.00018895,2]
[379386178,1755265846383,-453.0,0.00018895,2]
[379389759,1755266092687,152.3548301,0.00016439,2]
[379389775,1755266289557,150.19,0.00023,30]
[379389795,1755266617751,166.5,0.00014384,2]
[379389800,1755266642031,5000.0,0.00016439,2]
[379389801,1755266651001,158.054621,0.00013699,2]
[379389803,1755266659145,5000.0,0.00016439,2]
[379389804,1755266676217,5000.0,0.00016439,2]
[379389808,1755266692731,5000.0,0.00016439,2]
[379389845,1755266945200,-685.09017079,0.00016443,2]
[379389846,1755266945220,-2737.62032246,0.00016443,2]
[379389847,1755266945239,-151.0,0.000165,2]
[379389848,1755266945262,-166.17068051,0.00016984,2]
[379389849,1755266945287,-224.09045933,0.00017084,2]
[379389850,1755266945311,-260.16411721,0.00017084,2]
[379389851,1755266945335,-82.15711578,0.000176,2]
[379389853,1755266957133,-68.84288422,0.000176,2]
[379389854,1755266957157,-207.63471578,0.00017982,2]
[379389855,1755266965117,-992.36528422,0.00017982,2]
[379389856,1755266965141,-458.96735622,0.00017983,2]
[379389870,1755267032664,-41.03264378,0.00017983,2]
[379389871,1755267032674,-518.0,0.00018201,2]
[379389872,1755267032684,-411.61775933,0.00018219,2]
[379389873,1755267032694,-1644.82456628,0.00018219,2]
[379389874,1755267032703,-889.5377199,0.000183,2]
[379389875,1755267032713,-300.0,0.00018564,2]
[379389876,1755267032722,-200.0,0.00018565,20]
[379389877,1755267032732,-200.0,0.00018565,20]
[379389878,1755267032742,-109.49133342,0.00018565,20]
[379389912,1755267038666,-90.50866658,0.00018565,20]
[379389913,1755267038677,-200.0,0.00018565,20]
[379389914,1755267038686,-200.0,0.00018565,20]
[379389916,1755267038696,-200.0,0.00018565,20]
[379389918,1755267038705,-725.02279502,0.00018576,2]
[379389939,1755267038897,-732.34019978,0.00018576,2]
[379389941,1755267038907,-39.9397401,0.00018684,2]
[379389943,1755267038920,-713.34979613,0.00018684,2]
[379389945,1755267038930,-151.0,0.000187,2]
[379389947,1755267038939,-500.0,0.00018784,2]
[379389949,1755267038949,-151.0,0.00018784,2]
[379389951,1755267038958,-500.0,0.00018784,2]
[379389953,1755267038968,-151.0,0.00018784,2]
[379389955,1755267038977,-265.61602389,0.00018784,2]
[379389957,1755267038986,-151.0,0.00018784,2]
[379389959,1755267038995,-500.0,0.00018784,2]
[379389961,1755267039005,-151.0,0.00018784,2]
[379389963,1755267039014,-500.0,0.00018784,2]
[379389965,1755267039024,-151.0,0.00018784,2]
[379389967,1755267039033,-500.0,0.00018784,2]
[379389969,1755267039042,-151.0,0.00018784,2]
[379389971,1755267039052,-500.0,0.00018784,2]
[379389973,1755267039064,-151.0,0.00018784,2]
[379389975,1755267039074,-151.0,0.00018784,2]
[379389977,1755267039085,-500.0,0.00018784,2]
[379389978,1755267039095,-151.0,0.00018784,2]
[379389980,1755267039106,-395.97752388,0.00018784,2]
[379389983,1755267039118,-104.02247612,0.00018784,2]
[379389985,1755267039128,-151.0,0.00018784,2]
[379389987,1755267039139,-500.0,0.00018784,2]
[379389989,1755267039157,-151.0,0.00018784,2]
[379389991,1755267039167,-500.0,0.00018784,2]
[379389993,1755267039177,-151.0,0.00018784,2]
[379389995,1755267039187,-12628.66053158,0.00018784,2]
[379390127,1755267040526,-160.0,0.00018782,2]
[379390129,1755267040536,-5213.86191642,0.00018784,2]
[379390131,1755267040546,-500.0,0.00018784,2]
[379390133,1755267040555,-500.0,0.00018784,2]
[379390135,1755267040564,-500.0,0.00018784,2]
[379390137,1755267040574,-500.0,0.00018784,2]
[379390139,1755267040583,-500.0,0.00018784,2]
[379390141,1755267040593,-151.0,0.00018784,2]
[379390143,1755267040604,-500.0,0.00018784,2]
[379390145,1755267040613,-151.0,0.00018784,2]
[379390147,1755267040622,-151.0,0.00018784,2]
[379390149,1755267040632,-151.0,0.00018784,2]
[379390151,1755267040641,-151.0,0.00018784,2]
[379390153,1755267040650,-151.0,0.00018784,2]
[379390155,1755267040660,-293.00176164,0.00018784,2]
[379390157,1755267040669,-254.25192712,0.00018794,2]
[379390159,1755267040678,-500.0,0.00018794,2]
[379390160,1755267040688,-500.0,0.00018794,2]
[379390177,1755267040839,-295.12537329,0.00018794,2]
[379390179,1755267040850,-48629.73819654,0.00018795,2]
[379390181,1755267040862,-153.73563429,0.00018813,2]
[379390183,1755267040872,-500.0,0.00018874,3]
[379390185,1755267040882,-804.67,0.00018874,3]
[379390186,1755267040892,-402.34,0.00018874,3]
[379390188,1755267040902,-201.17,0.00018874,3]
[379390190,1755267040911,-603.53,0.00018874,3]
[379390192,1755267040921,-1609.34,0.0001889,3]
[379390194,1755267040930,-429.0,0.00018893,2]
[379390196,1755267040939,-151.0,0.00018893,2]
[379390198,1755267040950,-151.0,0.00018893,2]
[379390200,1755267040959,-1502.09735329,0.000189,2]
[379390202,1755267040969,-372.051907,0.000189,2]
[379390204,1755267040979,-500.0,0.0001893,2]
[379390206,1755267040989,-753.28953623,0.00018963,2]
[379390208,1755267040998,-3218.69,0.00018966,3]
[379390210,1755267041008,-224.76428505,0.00019037,2]
[379390212,1755267041017,-151.0,0.00019049,20]
[379390214,1755267041028,-222.502906,0.00019078,2]
[379390216,1755267041038,-222.502906,0.00019078,2]
[379390218,1755267041047,-500.0,0.00019148,3]
[379390220,1755267041059,-429.0,0.00019167,2]
[379390222,1755267041069,-198.0,0.00019167,2]
[379390224,1755267041079,-151.0,0.00019167,2]
[379390226,1755267041090,-202.65575717,0.00019177,2]
[379390228,1755267041100,-509.84920577,0.00019177,2]
[379390230,1755267041110,-509.84920577,0.00019177,2]
[379390232,1755267041120,-509.84920577,0.00019177,2]
[379390234,1755267041129,-509.84920577,0.00019177,2]
[379390236,1755267041139,-509.84920577,0.00019177,2]
[379390238,1755267041148,-509.84920577,0.00019177,2]
[379390240,1755267041157,-509.84920577,0.00019177,2]
[379390242,1755267041167,-509.84920577,0.00019177,2]
[379390244,1755267041176,-509.84920577,0.00019177,2]
[379390246,1755267041185,-509.84920577,0.00019177,2]
[379390248,1755267041194,-509.84920577,0.00019177,2]
[379390250,1755267041204,-509.84920577,0.00019177,2]
[379390252,1755267041213,-509.84920577,0.00019177,2]
[379390254,1755267041222,-509.84920577,0.00019177,2]
[379390256,1755267041231,-222.502906,0.00019178,2]
[379390257,1755267041241,-222.502906,0.00019178,2]
[379390258,1755267041250,-151.0,0.00019178,2]
[379390259,1755267041259,-151.0,0.00019178,2]
[379390260,1755267041268,-151.0,0.00019178,2]
[379390261,1755267041278,-151.0,0.00019178,2]
[379390262,1755267041287,-460.0,0.00019178,2]
[379390263,1755267041296,-269.38618865,0.00019178,2]
[379390264,1755267041305,-465.50438707,0.00019178,2]
[379390265,1755267041315,-460.87160496,0.00019178,2]
[379390266,1755267041324,-460.0,0.00019178,2]
[379390267,1755267041334,-460.0,0.00019178,2]
[379390268,1755267041344,-1594.94,0.00019178,2]
[379390269,1755267041353,-156.70346,0.00019178,2]
[379390270,1755267041362,-245.52,0.00019178,2]
[379390271,1755267041372,-156.70346,0.00019178,2]
[379390272,1755267041384,-460.0,0.00019178,2]
[379390273,1755267041394,-208.97,0.00019178,2]
[379390274,1755267041404,-206.92051525,0.00019178,2]
[379390275,1755267041414,-214.27,0.00019178,2]
[379390276,1755267041423,-460.0,0.00019178,2]
[379390277,1755267041433,-512.46869043,0.00019178,2]
[379390278,1755267041442,-284.84697894,0.00019178,2]
[379390279,1755267041452,-462.05074957,0.00019178,2]
[379390280,1755267041461,-341.76,0.00019178,2]
[379390281,1755267041470,-265.82725239,0.00019178,2]
[379390282,1755267041479,-460.0,0.00019178,2]
[379390283,1755267041488,-891.53,0.00019178,2]
[379390284,1755267041497,-460.0,0.00019178,2]
[379390285,1755267041506,-460.0,0.00019178,2]
[379390286,1755267041514,-460.0,0.00019178,2]
[379390287,1755267041523,-460.0,0.00019178,2]
[379390288,1755267041532,-273.42,0.00019178,2]
[379390289,1755267041541,-460.0,0.00019178,2]
[379390290,1755267041550,-460.0,0.00019178,2]
[379390291,1755267041564,-495.26,0.00019178,2]
[379390292,1755267041573,-328.06,0.00019178,2]
[379390293,1755267041582,-238.7,0.00019178,2]
[379390294,1755267041593,-460.0,0.00019178,2]
[379390295,1755267041602,-151.0,0.00019178,2]
[379390296,1755267041611,-460.0,0.00019178,2]
[379390297,1755267041621,-460.0,0.00019178,2]
[379390299,1755267041631,-460.0,0.00019178,2]
[379390300,1755267041640,-460.0,0.00019178,2]
[379390301,1755267041649,-460.0,0.00019178,2]
[379390302,1755267041659,-460.0,0.00019178,2]
[379390304,1755267041668,-761.48,0.00019178,2]
[379390306,1755267041678,-759.21,0.00019178,2]
[379390308,1755267041688,-759.21,0.00019178,2]
[379390310,1755267041698,-759.21,0.00019178,2]
[379390312,1755267041707,-759.21,0.00019178,2]
[379390314,1755267041717,-759.21,0.00019178,2]
[379390316,1755267041727,-759.21,0.00019178,2]
[379390318,1755267041736,-759.21,0.00019178,2]
[379390320,1755267041746,-759.21,0.00019178,2]
[379390322,1755267041756,-759.21,0.00019178,2]
[379390324,1755267041765,-759.21,0.00019178,2]
[379390326,1755267041775,-759.21,0.00019178,2]
[379390328,1755267041784,-759.21,0.00019178,2]
[379390330,1755267041794,-759.21,0.00019178,2]
[379390332,1755267041803,-759.21,0.00019178,2]
[379390334,1755267041812,-460.0,0.00019178,2]
[379390335,1755267041822,-759.21,0.00019178,2]
[379390337,1755267041832,-759.21,0.00019178,2]
[379390340,1755267041843,-759.21,0.00019178,2]
[379390341,1755267041852,-759.21,0.00019178,2]
[379390343,1755267041864,-460.0,0.00019178,2]
[379390345,1755267041876,-460.0,0.00019178,2]
[379390347,1755267041885,-256.97125483,0.00019178,2]
[379390349,1755267041895,-753.28953623,0.00019242,2]
[379390352,1755267041905,-800.0,0.00019272,2]
[379390353,1755267041914,-198.0,0.00019323,20]
[379390355,1755267041924,-5826.23005653,0.00019421,2]
[379390357,1755267041934,-500.0,0.00019422,3]
[379390359,1755267041943,-429.0,0.00019441,2]
[379390361,1755267041955,-151.0,0.00019441,2]
[379390363,1755267041964,-323.396455,0.00019452,2]
[379390365,1755267041974,-323.396455,0.00019452,2]
[379390367,1755267041984,-151.0,0.00019452,2]
[379390369,1755267041994,-151.0,0.00019452,2]
[379390372,1755267042005,-222.502906,0.00019452,2]
[379390374,1755267042015,-222.502906,0.00019452,2]
[379390376,1755267042025,-151.0,0.00019452,2]
[379390378,1755267042035,-153.719746,0.00019452,2]
[379390380,1755267042045,-151.0,0.00019452,2]
[379390382,1755267042058,-151.868498,0.00019452,2]
[379390384,1755267042068,-460.0,0.00019452,2]
[379390386,1755267042077,-1594.94,0.00019452,2]
[379390388,1755267042088,-151.0,0.00019452,2]
[379390389,1755267042098,-187.02,0.00019452,2]
[379390391,1755267042108,-151.0,0.00019452,2]
[379390394,1755267042119,-350.9,0.00019452,2]
[379390395,1755267042128,-891.53,0.00019452,2]
[379390397,1755267042139,-460.0,0.00019452,2]
[379390400,1755267042148,-460.0,0.00019452,2]
[379390401,1755267042158,-460.0,0.00019452,2]
[379390403,1755267042168,-460.0,0.00019452,2]
[379390405,1755267042178,-460.0,0.00019452,2]
[379390408,1755267042188,-460.0,0.00019452,2]
[379390409,1755267042198,-460.0,0.00019452,2]
[379390411,1755267042208,-460.0,0.00019452,2]
[379390413,1755267042218,-761.48,0.00019452,2]
[379390415,1755267042227,-569.33592278,0.00019452,2]
[379390417,1755267042237,-460.0,0.00019452,2]
[379390419,1755267042247,-460.0,0.00019452,2]
[379390421,1755267042256,-269.0,0.00019516,2]
[379390423,1755267042267,-427.0417098,0.00019519,2]
[379390425,1755267042277,-1139.68711375,0.00019519,2]
[379390545,1755267043460,-528.90102382,0.00019519,2]
[379390857,1755267046469,-46425.72312669,0.00019519,2]
[379390859,1755267046480,-2019.9551446,0.00019519,2]
[379390862,1755267046493,-481.76865026,0.00019519,2]
[379390872,1755267046579,-9231.1,0.00019519,2]
[379390874,1755267046591,-2139.52953205,0.00019519,2]
[379395523,1755267390268,215.63758983,0.0003,120]
[379395539,1755267695732,215.63758983,0.0003,120]
[379395551,1755267914110,5000.0,0.00016439,2]
[379395556,1755267930128,5000.0,0.00016439,2]
[379395558,1755267945899,5000.0,0.00016439,2]
[379395559,1755267962298,5000.0,0.00016439,2]
[379395560,1755267978546,1191.51285861,0.00016439,2]
[379395563,1755268031243,-166.1706805,0.00016572,2]
[379395564,1755268031264,-307.5886108,0.00016772,2]
[379395565,1755268031284,-180.2129907,0.00017564,2]
[379395566,1755268031305,-706.97872852,0.00017642,2]
[379395567,1755268031326,-153.7943054,0.00017664,2]
[379395568,1755268031347,-369.0287212,0.00017834,2]
[379395569,1755268031367,-27.32882901,0.00017908,2]
[379395571,1755268042114,-472.67117099,0.00017908,2]
[379395572,1755268042136,-1200.0,0.0001859,2]
[379395573,1755268042159,-67.64326563,0.00018592,2]
[379395585,1755268145082,-165.7339152,0.00018,2]
[379395615,1755268232912,-143.62513891,0.00018,2]
[379395616,1755268232923,-308.52621004,0.00018399,2]
[379395617,1755268232934,-300.0,0.00018499,2]
[379395618,1755268232944,-300.0,0.00018499,2]
[379395619,1755268232957,-300.0,0.00018499,2]
[379395620,1755268232967,-300.0,0.00018499,2]
[379395621,1755268232976,-300.0,0.00018499,2]
[379395622,1755268232986,-1151.0,0.00018499,2]
[379395623,1755268232996,-2187.13252109,0.000185,2]
[379395624,1755268233008,-19265.07711563,0.000185,2]
[379395625,1755268233017,-1200.0,0.00018593,2]
[379395626,1755268233027,-1172.4395367,0.00018593,2]
[379395627,1755268233039,-1172.43953669,0.000186,2]
[379395629,1755268233048,-1172.43953669,0.00018608,2]
[379395631,1755268233058,-1172.43953669,0.00018615,2]
[379395632,1755268233070,-1172.43953669,0.00018622,2]
[379395634,1755268233082,-1992.89,0.00018685,3]
[379395635,1755268233092,-1129.31,0.00018685,3]
[379395636,1755268233103,-564.65,0.00018685,3]
[379395637,1755268233113,-282.33,0.00018685,3]
[379395638,1755268233123,-847.0,0.00018685,3]
[379395639,1755268233133,-332.8782852,0.00018692,2]
[379395640,1755268233144,-500.0,0.00018692,2]
[379395642,1755268233154,-500.0,0.00018692,2]
[379395644,1755268233163,-500.0,0.00018692,2]
[379395645,1755268233173,-500.0,0.00018692,2]
[379395646,1755268233183,-626.94,0.00018692,2]
[379395647,1755268233193,-500.0,0.00018692,2]
[379395648,1755268233204,-500.0,0.00018692,2]
[379395649,1755268233213,-500.0,0.00018692,2]
[379395650,1755268233223,-500.0,0.00018692,2]
[379395651,1755268233233,-272.24407352,0.00018692,2]
[379395652,1755268233243,-500.0,0.00018692,2]
[379395653,1755268233252,-500.0,0.00018692,2]
[379395654,1755268233262,-500.0,0.00018692,2]
[379395655,1755268233272,-213.47876431,0.00018692,2]
[379395656,1755268233283,-500.0,0.00018692,2]
[379395657,1755268233292,-500.0,0.00018692,2]
[379395658,1755268233301,-500.0,0.00018692,2]
[379395660,1755268233311,-355.32158017,0.00018692,2]
[379395661,1755268233323,-500.0,0.00018692,2]
[379395662,1755268233332,-500.0,0.00018692,2]
[379395663,1755268233342,-500.0,0.00018692,2]
[379395664,1755268233352,-500.0,0.00018692,2]
[379395665,1755268233362,-500.0,0.00018692,2]
[379395666,1755268233372,-394.67379652,0.00018694,2]
[379395667,1755268233382,-566.91973944,0.00018694,2]
[379395668,1755268233391,-213.51112485,0.00018694,2]
[379395669,1755268233401,-566.91973944,0.00018694,2]
[379395670,1755268233411,-566.91973944,0.00018694,2]
[379395671,1755268233421,-566.91973944,0.00018694,2]
[379395672,1755268233432,-566.91973944,0.00018694,2]
[379395673,1755268233443,-566.91973944,0.00018694,2]
[379395674,1755268233453,-566.91973944,0.00018694,2]
[379395675,1755268233463,-566.91973944,0.00018694,2]
[379395676,1755268233474,-566.91973944,0.00018694,2]
[379395677,1755268233484,-566.91973944,0.00018694,2]
[379395678,1755268233494,-566.91973944,0.00018694,2]
[379395679,1755268233504,-566.91973944,0.00018694,2]
[379395680,1755268233514,-584.6359813,0.00018694,2]
[379395681,1755268233524,-584.6359813,0.00018694,2]
[379395682,1755268233534,-584.6359813,0.00018694,2]
[379395683,1755268233544,-584.6359813,0.00018694,2]
[379395684,1755268233553,-393.46165391,0.00018694,2]
[379395733,1755268239042,-1661.63855381,0.00018522,2]
[379395735,1755268239052,-500.0,0.00018692,2]
[379395737,1755268239061,-500.0,0.00018692,2]
[379395739,1755268239073,-436.72022575,0.00018692,2]
[379395742,1755268239084,-63.27977425,0.00018692,2]
[379395744,1755268239094,-446.04035162,0.00018692,2]
[379395746,1755268239106,-53.95964838,0.00018692,2]
[379395748,1755268239116,-500.0,0.00018692,2]
[379395750,1755268239125,-500.0,0.00018692,2]
[379395752,1755268239135,-500.0,0.00018692,2]
[379395754,1755268239145,-500.0,0.00018692,2]
[379395756,1755268239154,-500.0,0.00018692,2]
[379395758,1755268239164,-626.83216747,0.00018692,2]
[379395760,1755268239173,-500.0,0.00018692,2]
[379395762,1755268239182,-500.0,0.00018692,2]
[379395764,1755268239192,-500.0,0.00018692,2]
[379395766,1755268239201,-500.0,0.00018692,2]
[379395768,1755268239210,-152.37240943,0.00018692,2]
[379395770,1755268239219,-143.78568473,0.00018692,2]
[379395913,1755268240583,-356.21431527,0.00018692,2]
[379395915,1755268240593,-500.0,0.00018692,2]
[379395917,1755268240603,-323.47848473,0.00018692,2]
[379395920,1755268240614,-176.52151527,0.00018692,2]
[379395922,1755268240623,-79.38349634,0.00018692,2]
[379395924,1755268240635,-420.61650366,0.00018692,2]
[379395926,1755268240644,-93.88132686,0.00018692,2]
[379395928,1755268240656,-406.11867314,0.00018692,2]
[379395930,1755268240666,-191.17432739,0.00018694,2]
[379395932,1755268240678,-6.22599947,0.00018694,2]
[379395936,1755268240702,-578.40998183,0.00018694,2]
[379395938,1755268240711,-584.6359813,0.00018694,2]
[379395940,1755268240721,-584.6359813,0.00018694,2]
[379395942,1755268240730,-584.6359813,0.00018694,2]
[379395944,1755268240740,-584.6359813,0.00018694,2]
[379395945,1755268240750,-584.6359813,0.00018694,2]
[379395947,1755268240761,-584.6359813,0.00018694,2]
[379395950,1755268240771,-648.59615703,0.00018694,2]
[379395951,1755268240781,-648.59615703,0.00018694,2]
[379395953,1755268240790,-648.59615703,0.00018694,2]
[379395955,1755268240799,-648.59615703,0.00018694,2]
[379395957,1755268240809,-869.88190475,0.00018694,2]
[379395959,1755268240818,-1895.90443614,0.00018695,2]
[379395961,1755268240827,-67307.86145234,0.00018695,2]
[379395963,1755268240838,-530.11,0.00018695,2]
[379395966,1755268240850,-106224.34821611,0.00018695,2]
[379396568,1755268246686,-4373.45663335,0.00018695,2]
[379396570,1755268246697,-270.1,0.00018695,2]
[379396587,1755268246842,-1570.4500005,0.00018695,2]
[379400898,1755268304056,215.63758983,0.0003,120]
[379400913,1755268588394,1330.0,0.00030137,120]
[379400924,1755268793295,165.206211,0.00013699,2]
[379400926,1755268827188,5000.0,0.00016439,2]
[379400928,1755268842945,5000.0,0.00016439,2]
[379400930,1755268858695,5000.0,0.00016439,2]
[379400931,1755268874508,5000.0,0.00016439,2]
[379400932,1755268890180,5000.0,0.00016439,2]
[379400933,1755268905991,5000.0,0.00016439,2]
[379400934,1755268921928,5000.0,0.00016439,2]
[379400935,1755268937546,5000.0,0.00016439,2]
[379400936,1755268953379,5000.0,0.00016439,2]
[379400937,1755268969312,5000.0,0.00016439,2]
[379400939,1755268985017,5000.0,0.00016439,2]
[379400940,1755269001108,5000.0,0.00016439,2]
[379400941,1755269010093,250.0,0.00016117,2]
[379400942,1755269018107,5000.0,0.00016439,2]
[379400943,1755269034561,5000.0,0.00016439,2]
[379400946,1755269052035,5000.0,0.00016439,2]
[379400947,1755269068933,5000.0,0.00016439,2]
[379400950,1755269085098,5000.0,0.00016439,2]
[379400951,1755269101795,5000.0,0.00016439,2]
[379400961,1755269117455,5000.0,0.00016439,2]
[379400965,1755269133637,5000.0,0.00016439,2]
[379400967,1755269149025,5000.0,0.00016439,2]
[379400969,1755269165170,2205.87241857,0.00016439,2]
[379400970,1755269179837,236.89687105,0.00016424,2]
[379400973,1755269226808,189.51749684,0.00016424,2]
[379400975,1755269229084,-152.90992746,0.00016517,2]
[379400980,1755269249132,-346.55812673,0.00016524,2]
[379400982,1755269253110,-379.61822459,0.00016524,2]
[379400984,1755269316155,5000.0,0.00016439,2]
[379400996,1755269331738,5000.0,0.00016439,2]
[379400998,1755269346077,-722.98209388,0.00016524,2]
[379400999,1755269346097,-151.61399748,0.00016617,2]
[379401000,1755269346117,-307.5886108,0.00016717,2]
[379401001,1755269346138,-151.61399744,0.00016815,2]
[379401002,1755269346157,-151.61399744,0.00017013,2]
[379401003,1755269346177,-77.92538901,0.00017211,2]
[379401004,1755269346206,-73.68860843,0.00017211,2]
[379401005,1755269346226,-1453.93373461,0.00017409,2]
[379401006,1755269346246,-151.61399744,0.00017409,2]
[379401007,1755269346266,-162.270945,0.00017481,2]
[379401008,1755269346286,-300.0,0.00017502,2]
[379401009,1755269346308,-500.0,0.00017503,2]
[379401010,1755269346329,-500.0,0.00017503,2]
[379401011,1755269346349,-500.0,0.00017503,2]
[379401012,1755269346369,-500.0,0.00017503,2]
[379401013,1755269346389,-500.0,0.00017503,2]
[379401014,1755269346412,-500.0,0.00017503,2]
[379401015,1755269346433,-401.20856054,0.00017503,2]
[379401016,1755269346455,-324.83129648,0.00017503,2]
[379401017,1755269346477,-500.0,0.00017503,2]
[379401018,1755269346498,-500.0,0.00017503,2]
[379401019,1755269346521,-500.0,0.00017503,2]
[379401020,1755269346543,-468.49410486,0.00017503,2]
[379401021,1755269346562,-300.0,0.00017504,2]
[379401022,1755269346583,-300.0,0.00017504,2]
[379401023,1755269346604,-1142.0,0.00017504,2]
[379401024,1755269346624,-11180.54479605,0.00017504,2]
[379401025,1755269360106,-5000.0,0.00017329,2]
[379401026,1755269360129,-2300.35879401,0.00017404,2]
[379401027,1755269360152,-38819.45520395,0.00017504,2]
[379401028,1755269360174,-30036.93371053,0.00017509,2]
[379401029,1755269368147,-560.546514,0.00017334,2]
[379401030,1755269369093,-3803.86518004,0.00017334,2]
[379401031,1755269371121,-635.58830596,0.00017334,2]
[379401032,1755269371140,-404.42574888,0.00017509,2]
[379401407,1755269436019,-2000.0,0.00017283,2]
[379401408,1755269436029,-5000.0,0.00017334,2]
[379401409,1755269436041,-106.57449399,0.00017509,2]
[379401410,1755269436051,-269.0,0.00017852,2]
[379401411,1755269436061,-300.0,0.00017852,2]
[379401412,1755269436070,-300.0,0.00017852,2]
[379401413,1755269436079,-200.0,0.00017853,2]
[379401414,1755269436089,-200.0,0.00017853,2]
[379401415,1755269436098,-200.0,0.00017853,2]
[379401416,1755269436107,-200.0,0.00017853,2]
[379401417,1755269436116,-200.0,0.00017853,2]
[379401418,1755269436125,-200.0,0.00017853,2]
[379401419,1755269436134,-1102.55,0.00018585,3]
[379401420,1755269436144,-551.27,0.00018585,3]
[379401421,1755269436152,-275.64,0.00018585,3]
[379401423,1755269436162,-826.92,0.00018585,3]
[379401425,1755269436171,-329.83267832,0.00018594,2]
[379401427,1755269436180,-151.0,0.00018595,2]
[379401429,1755269436189,-45257.13603511,0.00018595,2]
[379401431,1755269436198,-1260.52903178,0.00018722,2]
[379401433,1755269436207,-151.0,0.00018722,2]
[379401435,1755269436216,-1344.77307438,0.00018722,2]
[379401437,1755269436226,-151.0,0.00018722,2]
[379401439,1755269436236,-151.0,0.00018722,2]
[379401440,1755269436245,-151.0,0.00018722,2]
[379401442,1755269436254,-151.0,0.00018722,2]
[379401444,1755269436264,-151.0,0.00018722,2]
[379401447,1755269436274,-151.0,0.00018722,2]
[379401448,1755269436283,-151.0,0.00018722,2]
[379401451,1755269436293,-151.0,0.00018722,2]
[379401453,1755269436302,-151.0,0.00018722,2]
[379401455,1755269436311,-151.0,0.00018722,2]
[379401457,1755269436320,-151.0,0.00018722,2]
[379401458,1755269436330,-500.0,0.00018722,2]
[379401460,1755269436339,-160.0,0.00018768,2]
[379401462,1755269436347,-352.14,0.00018783,2]
[379401464,1755269436356,-500.0,0.0001885,2]
[379401465,1755269436366,-1310.7185621,0.000189,2]
[379401466,1755269436377,-129.79954172,0.000189,2]
[379401467,1755269436387,-1323.06,0.00019168,3]
[379401468,1755269436396,-460.0,0.00019178,2]
[379401469,1755269436405,-460.0,0.00019178,2]
[379401470,1755269436414,-460.0,0.00019178,2]
[379401471,1755269436424,-460.0,0.00019178,2]
[379401472,1755269436433,-460.62362032,0.00019178,2]